[Event "*** Titled Tuesday Blitz"]
[Site "Chess.com"]
[Date "2020.11.10"]
[Round "7"]
[White "Lenyas66"]
[Black "Harsha_Bharathakoti"]
[Result "0-1"]
[WhiteElo "2461"]
[BlackElo "2787"]
[TimeControl "180+1"]
[EndTime "11:22:13 PST"]
[Termination "Harsha_Bharathakoti won by resignation"]

1. d4 {[%clk 0:03:00.9]} 1... Nf6 {[%clk 0:03:00]} 2. Bg5 {[%clk 0:03:00.8]}
2... e6 {[%clk 0:03:00.8]} 3. e4 {[%clk 0:03:00.5]} 3... h6 {[%clk 0:03:01]} 4.
Bxf6 {[%clk 0:03:00.8]} 4... Qxf6 {[%clk 0:03:01.9]} 5. Nf3 {[%clk 0:03:01]}
5... d6 {[%clk 0:03:02]} 6. Bd3 {[%clk 0:03:01]} 6... Nd7 {[%clk 0:03:02.5]} 7.
Nbd2 {[%clk 0:03:00.4]} 7... g6 {[%clk 0:03:02.5]} 8. O-O {[%clk 0:02:59.5]}
8... Bg7 {[%clk 0:03:03]} 9. Re1 {[%clk 0:02:58.1]} 9... e5 {[%clk 0:03:02.1]}
10. c3 {[%clk 0:02:50.6]} 10... O-O {[%clk 0:03:02]} 11. a4 {[%clk 0:02:48.3]}
11... Qe7 {[%clk 0:03:01.8]} 12. a5 {[%clk 0:02:47.1]} 12... a6 {[%clk
0:03:02.4]} 13. Qb3 {[%clk 0:02:45.6]} 13... Nf6 {[%clk 0:02:55.8]} 14. h3
{[%clk 0:02:45.1]} 14... Nh5 {[%clk 0:02:51.8]} 15. Bf1 {[%clk 0:02:29.2]} 15...
Nf4 {[%clk 0:02:50.9]} 16. Kh2 {[%clk 0:02:21.7]} 16... Kh7 {[%clk 0:01:59.8]}
17. Qa3 {[%clk 0:02:07.2]} 17... Qf6 {[%clk 0:01:58.4]} 18. dxe5 {[%clk
0:02:04.3]} 18... dxe5 {[%clk 0:01:57.9]} 19. Qc5 {[%clk 0:02:03.4]} 19... Ne6
{[%clk 0:01:53.3]} 20. Qe3 {[%clk 0:02:00.7]} 20... h5 {[%clk 0:01:53]} 21. g3
{[%clk 0:01:48.9]} 21... Bh6 {[%clk 0:01:52.7]} 22. Qe2 {[%clk 0:01:49.2]} 22...
Rd8 {[%clk 0:01:53.4]} 23. Nc4 {[%clk 0:01:47.9]} 23... Ng5 {[%clk 0:01:50.4]}
24. Nfxe5 {[%clk 0:01:45.7]} 24... h4 {[%clk 0:01:46]} 25. Bg2 {[%clk
0:01:39.1]} 25... Be6 {[%clk 0:01:42.8]} 26. Ng4 {[%clk 0:01:37.7]} 26... hxg3+
{[%clk 0:01:42.8]} 27. fxg3 {[%clk 0:01:37.3]} 27... Bxg4 {[%clk 0:01:24.6]} 28.
Qxg4 {[%clk 0:01:36.2]} 28... Qe6 {[%clk 0:01:23.3]} 29. Qxe6 {[%clk 0:01:32.6]}
29... Nxe6 {[%clk 0:01:24.2]} 30. e5 {[%clk 0:01:29.9]} 30... Kg7 {[%clk
0:01:25.1]} 31. Bxb7 {[%clk 0:01:27]} 31... Ra7 {[%clk 0:01:24.8]} 32. Bg2
{[%clk 0:01:25.9]} 32... Bg5 {[%clk 0:01:21.3]} 33. Rad1 {[%clk 0:01:24.2]}
33... Rb8 {[%clk 0:01:22.2]} 34. b4 {[%clk 0:01:22.9]} 34... c5 {[%clk
0:01:21.6]} 35. Nb6 {[%clk 0:01:16.9]} 35... cxb4 {[%clk 0:01:20.1]} 36. cxb4
{[%clk 0:01:17.1]} 36... Be7 {[%clk 0:01:21]} 37. Re4 {[%clk 0:01:15]} 37... Rc7
{[%clk 0:01:19.5]} 38. Rd2 {[%clk 0:01:10.3]} 38... Rc3 {[%clk 0:01:19.5]} 39.
h4 {[%clk 0:01:07]} 39... Rb3 {[%clk 0:01:18.9]} 40. Bh3 {[%clk 0:00:57.6]}
40... Rxb4 {[%clk 0:01:16.2]} 41. Rxb4 {[%clk 0:00:36]} 41... Bxb4 {[%clk
0:01:17.1]} 42. Rd5 {[%clk 0:00:36]} 42... Bxa5 {[%clk 0:01:14.5]} 43. Bxe6
{[%clk 0:00:34.5]} 43... fxe6 {[%clk 0:01:12]} 44. Rd7+ {[%clk 0:00:32.7]} 44...
Kg8 {[%clk 0:01:07.8]} 45. Nc4 {[%clk 0:00:32.4]} 45... Bc3 {[%clk 0:01:08.5]}
46. Rc7 {[%clk 0:00:24.7]} 46... a5 {[%clk 0:01:06]} 47. Rc6 {[%clk 0:00:23.7]}
47... a4 {[%clk 0:00:52.5]} 48. Rxe6 {[%clk 0:00:23.4]} 48... Ra8 {[%clk
0:00:52.7]} 49. Rxg6+ {[%clk 0:00:23]} 49... Kh7 {[%clk 0:00:52.5]} 50. Rf6
{[%clk 0:00:20.1]} 50... a3 {[%clk 0:00:53.4]} 51. Rf7+ {[%clk 0:00:18.6]} 51...
Kg8 {[%clk 0:00:51.9]} 52. Rf1 {[%clk 0:00:07.3]} 52... a2 {[%clk 0:00:52.2]}
53. e6 {[%clk 0:00:06.6]} 53... a1=Q {[%clk 0:00:52.4]} 54. Rxa1 {[%clk
0:00:06.3]} 54... Bxa1 {[%clk 0:00:53.3]} 0-1

[Event "*** Titled Tuesday Blitz"]
[Site "Chess.com"]
[Date "2020.11.10"]
[Round "7"]
[White "temus_galaktionov"]
[Black "RobPeresian"]
[Result "1-0"]
[WhiteElo "2624"]
[BlackElo "2456"]
[TimeControl "180+1"]
[EndTime "11:22:13 PST"]
[Termination "temus_galaktionov won by resignation"]

1. d4 {[%clk 0:03:00.9]} 1... d5 {[%clk 0:02:59.7]} 2. Nf3 {[%clk 0:03:01.8]}
2... Nf6 {[%clk 0:02:59.3]} 3. c4 {[%clk 0:03:02.7]} 3... c6 {[%clk 0:02:59.6]}
4. Qb3 {[%clk 0:03:00.8]} 4... Qb6 {[%clk 0:02:54.1]} 5. Nc3 {[%clk 0:02:59.4]}
5... dxc4 {[%clk 0:02:46.3]} 6. Qxc4 {[%clk 0:02:58.7]} 6... Be6 {[%clk
0:02:43.3]} 7. Qd3 {[%clk 0:02:58.2]} 7... g6 {[%clk 0:02:43.4]} 8. e4 {[%clk
0:02:58]} 8... Bg7 {[%clk 0:02:41.4]} 9. Be2 {[%clk 0:02:56.2]} 9... O-O {[%clk
0:02:39.8]} 10. O-O {[%clk 0:02:55.2]} 10... Rd8 {[%clk 0:02:35.2]} 11. h3
{[%clk 0:02:53.4]} 11... a5 {[%clk 0:02:31.2]} 12. Rd1 {[%clk 0:02:52.2]} 12...
Na6 {[%clk 0:02:31.2]} 13. Be3 {[%clk 0:02:47.7]} 13... Qc7 {[%clk 0:02:07.4]}
14. Qd2 {[%clk 0:02:42.5]} 14... b5 {[%clk 0:02:05.4]} 15. Rac1 {[%clk 0:02:40]}
15... Qb7 {[%clk 0:02:04.3]} 16. e5 {[%clk 0:02:19.6]} 16... Nd5 {[%clk
0:02:01.9]} 17. Bh6 {[%clk 0:02:05.9]} 17... f6 {[%clk 0:01:58.7]} 18. Bxg7
{[%clk 0:02:04.4]} 18... Kxg7 {[%clk 0:01:58.7]} 19. Ne4 {[%clk 0:02:03.8]}
19... h6 {[%clk 0:01:42.2]} 20. Nc5 {[%clk 0:01:53.4]} 20... Nxc5 {[%clk
0:01:41.5]} 21. Rxc5 {[%clk 0:01:54.3]} 21... f5 {[%clk 0:01:26.9]} 22. Rdc1
{[%clk 0:01:51.8]} 22... Rdc8 {[%clk 0:01:18.8]} 23. a3 {[%clk 0:01:46]} 23...
Bd7 {[%clk 0:01:11.5]} 24. Ne1 {[%clk 0:01:42.9]} 24... e6 {[%clk 0:01:07.5]}
25. Bf3 {[%clk 0:01:42.4]} 25... a4 {[%clk 0:00:56.3]} 26. Nd3 {[%clk
0:01:41.5]} 26... Qa7 {[%clk 0:00:47.4]} 27. R1c2 {[%clk 0:01:37.5]} 27... Nb6
{[%clk 0:00:45.2]} 28. Nb4 {[%clk 0:01:18.1]} 28... Nc4 {[%clk 0:00:42.9]} 29.
Qc3 {[%clk 0:01:15.9]} 29... Be8 {[%clk 0:00:19]} 30. Be2 {[%clk 0:00:59.6]}
30... Nb6 {[%clk 0:00:14.3]} 31. Nxc6 {[%clk 0:00:57.8]} 31... Bxc6 {[%clk
0:00:14.3]} 32. Rxc6 {[%clk 0:00:58.7]} 32... Nd5 {[%clk 0:00:13.2]} 33. Qc5
{[%clk 0:00:57]} 33... Qxc5 {[%clk 0:00:12.6]} 34. R2xc5 {[%clk 0:00:57]} 34...
Rxc6 {[%clk 0:00:12.7]} 35. Rxc6 {[%clk 0:00:57.9]} 35... b4 {[%clk 0:00:13.6]}
36. Rxe6 {[%clk 0:00:56.4]} 36... bxa3 {[%clk 0:00:09.4]} 37. bxa3 {[%clk
0:00:57.3]} 37... Nc3 {[%clk 0:00:09]} 38. Bf3 {[%clk 0:00:53.8]} 38... Rb8
{[%clk 0:00:08.1]} 39. Rc6 {[%clk 0:00:51.6]} 39... Nb1 {[%clk 0:00:08.2]} 40.
Ra6 {[%clk 0:00:49.3]} 40... Nc3 {[%clk 0:00:08.3]} 41. d5 {[%clk 0:00:47.5]}
41... Rb1+ {[%clk 0:00:07.1]} 42. Kh2 {[%clk 0:00:46.8]} 42... Rb3 {[%clk
0:00:07.6]} 43. Ra7+ {[%clk 0:00:46.5]} 43... Kf8 {[%clk 0:00:07.4]} 44. d6
{[%clk 0:00:46.7]} 44... Rxa3 {[%clk 0:00:05.4]} 45. e6 {[%clk 0:00:46.5]} 45...
Ne4 {[%clk 0:00:05.5]} 46. Ra8+ {[%clk 0:00:45.1]} 46... Kg7 {[%clk 0:00:05.7]}
47. d7 {[%clk 0:00:44]} 47... Rd3 {[%clk 0:00:05.8]} 48. e7 {[%clk 0:00:43.3]}
1-0

[Event "*** Titled Tuesday Blitz"]
[Site "Chess.com"]
[Date "2020.11.10"]
[Round "7"]
[White "wnstop"]
[Black "Stormeman100100"]
[Result "0-1"]
[WhiteElo "2704"]
[BlackElo "2563"]
[TimeControl "180+1"]
[EndTime "11:22:21 PST"]
[Termination "Stormeman100100 won by resignation"]

1. e4 {[%clk 0:03:00.9]} 1... c5 {[%clk 0:02:59.2]} 2. Nf3 {[%clk 0:02:59.7]}
2... d6 {[%clk 0:02:58.8]} 3. d4 {[%clk 0:02:53.9]} 3... cxd4 {[%clk 0:02:59.7]}
4. Nxd4 {[%clk 0:02:53.7]} 4... Nf6 {[%clk 0:02:59.6]} 5. Nc3 {[%clk 0:02:53.9]}
5... a6 {[%clk 0:02:59.6]} 6. Be3 {[%clk 0:02:52.3]} 6... e5 {[%clk 0:02:54.8]}
7. Nf3 {[%clk 0:02:50.8]} 7... Be7 {[%clk 0:02:52.5]} 8. Bc4 {[%clk 0:02:50.4]}
8... Qc7 {[%clk 0:02:51.2]} 9. Bb3 {[%clk 0:02:45.9]} 9... h6 {[%clk 0:02:50]}
10. O-O {[%clk 0:02:31.3]} 10... O-O {[%clk 0:02:46.2]} 11. a4 {[%clk
0:02:26.4]} 11... Bg4 {[%clk 0:02:42.9]} 12. h3 {[%clk 0:02:21.1]} 12... Bh5
{[%clk 0:02:42.4]} 13. a5 {[%clk 0:02:01.8]} 13... Nbd7 {[%clk 0:02:40.7]} 14.
g4 {[%clk 0:01:41.1]} 14... Bg6 {[%clk 0:02:37.4]} 15. Nh4 {[%clk 0:01:39.1]}
15... Bxe4 {[%clk 0:02:21.2]} 16. Nxe4 {[%clk 0:01:36]} 16... Nxe4 {[%clk
0:02:21]} 17. Ng6 {[%clk 0:01:35]} 17... Bg5 {[%clk 0:01:52.4]} 18. Nxf8 {[%clk
0:01:15.2]} 18... Rxf8 {[%clk 0:01:46.4]} 19. Bxg5 {[%clk 0:01:05.6]} 19... Nxg5
{[%clk 0:01:44.7]} 20. h4 {[%clk 0:01:02.5]} 20... Nh3+ {[%clk 0:01:43.6]} 21.
Kh2 {[%clk 0:01:01.5]} 21... Nf4 {[%clk 0:01:43.2]} 22. Qf3 {[%clk 0:00:56.5]}
22... Nc5 {[%clk 0:01:19.6]} 23. Bd5 {[%clk 0:00:55]} 23... Nce6 {[%clk
0:01:17.6]} 24. c3 {[%clk 0:00:50.5]} 24... Nc5 {[%clk 0:01:17.3]} 25. Rg1
{[%clk 0:00:36.2]} 25... Qe7 {[%clk 0:01:13.5]} 26. g5 {[%clk 0:00:35.6]} 26...
hxg5 {[%clk 0:01:13.3]} 27. hxg5 {[%clk 0:00:34.1]} 27... g6 {[%clk 0:01:12.1]}
28. Qg4 {[%clk 0:00:28.3]} 28... Kg7 {[%clk 0:01:10.2]} 29. Kg3 {[%clk
0:00:28.1]} 29... Nxd5 {[%clk 0:01:03]} 30. Rh1 {[%clk 0:00:24.7]} 30... e4
{[%clk 0:00:53.8]} 31. Qh4 {[%clk 0:00:14.3]} 31... Qe5+ {[%clk 0:00:53.4]} 32.
Kg2 {[%clk 0:00:13.5]} 32... Nf4+ {[%clk 0:00:53]} 33. Kg1 {[%clk 0:00:13.6]}
33... Nh5 {[%clk 0:00:52.6]} 34. Rd1 {[%clk 0:00:13.5]} 34... Nd3 {[%clk
0:00:45.8]} 35. Qg4 {[%clk 0:00:12.4]} 35... Re8 {[%clk 0:00:42.1]} 36. Rh3
{[%clk 0:00:07.7]} 36... Nhf4 {[%clk 0:00:31.7]} 37. Rh2 {[%clk 0:00:06.8]}
37... Rh8 {[%clk 0:00:29]} 38. Rxh8 {[%clk 0:00:06.5]} 38... Kxh8 {[%clk
0:00:28.7]} 39. Qh4+ {[%clk 0:00:06.1]} 39... Kg7 {[%clk 0:00:28.3]} 40. Qg4
{[%clk 0:00:06.4]} 40... Qc5 {[%clk 0:00:23.4]} 41. Rd2 {[%clk 0:00:03.9]} 41...
e3 {[%clk 0:00:20.5]} 0-1

[Event "*** Titled Tuesday Blitz"]
[Site "Chess.com"]
[Date "2020.11.10"]
[Round "7"]
[White "Hikaru"]
[Black "FormerProdigy"]
[Result "0-1"]
[WhiteElo "3187"]
[BlackElo "2889"]
[TimeControl "180+1"]
[EndTime "11:22:22 PST"]
[Termination "FormerProdigy won by resignation"]

1. Nf3 {[%clk 0:02:59.8]} 1... d5 {[%clk 0:02:56.1]} 2. e3 {[%clk 0:02:56.4]}
2... g6 {[%clk 0:02:54.4]} 3. c4 {[%clk 0:02:56.5]} 3... c6 {[%clk 0:02:52.7]}
4. Nc3 {[%clk 0:02:50.5]} 4... Nf6 {[%clk 0:02:51.8]} 5. d4 {[%clk 0:02:49.8]}
5... Bg7 {[%clk 0:02:51.9]} 6. h3 {[%clk 0:02:47.7]} 6... O-O {[%clk 0:02:51.1]}
7. Be2 {[%clk 0:02:47.7]} 7... b6 {[%clk 0:02:47.7]} 8. O-O {[%clk 0:02:46.9]}
8... Bb7 {[%clk 0:02:47.8]} 9. b3 {[%clk 0:02:42.9]} 9... Nbd7 {[%clk 0:02:40]}
10. Bb2 {[%clk 0:01:06.1]} 10... c5 {[%clk 0:02:26.9]} 11. Rc1 {[%clk
0:01:04.9]} 11... Rc8 {[%clk 0:02:24.8]} 12. cxd5 {[%clk 0:01:04.9]} 12... Nxd5
{[%clk 0:02:24.9]} 13. Nxd5 {[%clk 0:01:05.6]} 13... Bxd5 {[%clk 0:02:24.7]} 14.
Ba6 {[%clk 0:01:06.4]} 14... Rc7 {[%clk 0:02:20.6]} 15. Ne5 {[%clk 0:01:07.1]}
15... cxd4 {[%clk 0:02:00.3]} 16. exd4 {[%clk 0:01:07.4]} 16... Rxc1 {[%clk
0:01:48.4]} 17. Qxc1 {[%clk 0:01:08.3]} 17... Nxe5 {[%clk 0:01:48.6]} 18. dxe5
{[%clk 0:01:09.2]} 18... Qa8 {[%clk 0:01:48.5]} 19. f3 {[%clk 0:01:09.6]} 19...
Bb7 {[%clk 0:01:31.4]} 20. Bc4 {[%clk 0:01:07.2]} 20... Bd5 {[%clk 0:01:27.8]}
21. Bxd5 {[%clk 0:01:04.7]} 21... Qxd5 {[%clk 0:01:28.7]} 22. Rd1 {[%clk
0:01:05]} 22... Qe6 {[%clk 0:00:54.6]} 23. Qc7 {[%clk 0:01:04.3]} 23... Rc8
{[%clk 0:00:54.7]} 24. Qxa7 {[%clk 0:01:03]} 24... Bxe5 {[%clk 0:00:54.8]} 25.
Bxe5 {[%clk 0:00:59.8]} 25... Qxe5 {[%clk 0:00:55.7]} 26. Qxb6 {[%clk
0:01:00.2]} 26... Rc2 {[%clk 0:00:55.6]} 27. f4 {[%clk 0:00:31.5]} 27... Qe2
{[%clk 0:00:30.3]} 28. Qd8+ {[%clk 0:00:29.4]} 28... Kg7 {[%clk 0:00:30.5]} 29.
Qd5 {[%clk 0:00:29.3]} 29... Rxa2 {[%clk 0:00:26.1]} 30. Kh1 {[%clk 0:00:30]}
30... Rb2 {[%clk 0:00:23.5]} 31. Rd3 {[%clk 0:00:23.9]} 31... Qf1+ {[%clk
0:00:22.4]} 32. Kh2 {[%clk 0:00:24.5]} 32... Qxf4+ {[%clk 0:00:23.1]} 33. Rg3
{[%clk 0:00:25.1]} 33... h5 {[%clk 0:00:19.1]} 34. Qf3 {[%clk 0:00:25.1]} 34...
Qxf3 {[%clk 0:00:18.4]} 35. Rxf3 {[%clk 0:00:26]} 35... h4 {[%clk 0:00:13.3]}
36. Re3 {[%clk 0:00:25.4]} 36... e6 {[%clk 0:00:12.7]} 37. Kg1 {[%clk
0:00:26.1]} 37... g5 {[%clk 0:00:12.5]} 38. Rc3 {[%clk 0:00:26.2]} 38... Kg6
{[%clk 0:00:12.7]} 39. Kf1 {[%clk 0:00:26.4]} 39... f5 {[%clk 0:00:12.7]} 40.
Rc6 {[%clk 0:00:25.8]} 40... Kf6 {[%clk 0:00:13.1]} 41. Rb6 {[%clk 0:00:26.7]}
41... g4 {[%clk 0:00:11.5]} 42. hxg4 {[%clk 0:00:26.8]} 42... fxg4 {[%clk
0:00:12.4]} 43. b4 {[%clk 0:00:26.4]} 43... Kf5 {[%clk 0:00:09.6]} 44. b5 {[%clk
0:00:22]} 44... Rb1+ {[%clk 0:00:09.1]} 45. Kf2 {[%clk 0:00:21]} 45... g3+
{[%clk 0:00:09.2]} 46. Kf3 {[%clk 0:00:21.7]} 46... Rb3+ {[%clk 0:00:09]} 47.
Ke2 {[%clk 0:00:22.4]} 47... Rb2+ {[%clk 0:00:08.5]} 48. Kf1 {[%clk 0:00:22.9]}
48... Rb1+ {[%clk 0:00:08.5]} 49. Ke2 {[%clk 0:00:23.3]} 49... h3 {[%clk
0:00:09.4]} 0-1

[Event "*** Titled Tuesday Blitz"]
[Site "Chess.com"]
[Date "2020.11.10"]
[Round "7"]
[White "ChronicUnhappiness"]
[Black "Oligan22"]
[Result "1-0"]
[WhiteElo "2339"]
[BlackElo "2419"]
[TimeControl "180+1"]
[EndTime "11:22:24 PST"]
[Termination "ChronicUnhappiness won on time"]

1. c4 {[%clk 0:03:00.9]} 1... e5 {[%clk 0:02:59.4]} 2. Nc3 {[%clk 0:02:59.8]}
2... d6 {[%clk 0:02:59.4]} 3. Nf3 {[%clk 0:02:52]} 3... f5 {[%clk 0:02:59.2]} 4.
g3 {[%clk 0:02:51.9]} 4... Nf6 {[%clk 0:02:59.4]} 5. d4 {[%clk 0:02:40.5]} 5...
e4 {[%clk 0:02:56]} 6. Nh4 {[%clk 0:02:40.2]} 6... Be7 {[%clk 0:02:52.9]} 7. Bh3
{[%clk 0:02:10]} 7... g6 {[%clk 0:02:48.7]} 8. O-O {[%clk 0:01:58.4]} 8... O-O
{[%clk 0:02:44.9]} 9. f3 {[%clk 0:01:58.3]} 9... c6 {[%clk 0:02:33.3]} 10. Bh6
{[%clk 0:01:49.2]} 10... Re8 {[%clk 0:02:16]} 11. fxe4 {[%clk 0:01:48.7]} 11...
Nxe4 {[%clk 0:02:16.9]} 12. Nf3 {[%clk 0:01:30.8]} 12... Bf6 {[%clk 0:02:03.5]}
13. Qd3 {[%clk 0:01:15.2]} 13... Na6 {[%clk 0:01:53.5]} 14. Rad1 {[%clk
0:01:02.8]} 14... Nb4 {[%clk 0:01:51]} 15. Qb1 {[%clk 0:01:00.1]} 15... a5
{[%clk 0:01:40.3]} 16. Nxe4 {[%clk 0:00:58.1]} 16... fxe4 {[%clk 0:01:19.4]} 17.
Bxc8 {[%clk 0:00:59]} 17... Rxc8 {[%clk 0:01:19.8]} 18. Ne1 {[%clk 0:00:55.1]}
18... Bg5 {[%clk 0:01:05.9]} 19. Bxg5 {[%clk 0:00:51.6]} 19... Qxg5 {[%clk
0:01:06.8]} 20. Ng2 {[%clk 0:00:51.4]} 20... h5 {[%clk 0:00:46.5]} 21. Rf4
{[%clk 0:00:50.1]} 21... d5 {[%clk 0:00:44.6]} 22. a3 {[%clk 0:00:34.6]} 22...
Na6 {[%clk 0:00:41.8]} 23. Rdf1 {[%clk 0:00:28.7]} 23... Nc7 {[%clk 0:00:32.7]}
24. Rf7 {[%clk 0:00:19.3]} 24... Ne6 {[%clk 0:00:32.6]} 25. e3 {[%clk
0:00:18.8]} 25... Rf8 {[%clk 0:00:21.3]} 26. Rxf8+ {[%clk 0:00:18]} 26... Rxf8
{[%clk 0:00:22.2]} 27. c5 {[%clk 0:00:16.9]} 27... Rf3 {[%clk 0:00:21.1]} 28.
Qe1 {[%clk 0:00:14.6]} 28... h4 {[%clk 0:00:18.4]} 29. Rxf3 {[%clk 0:00:13.1]}
29... exf3 {[%clk 0:00:16.3]} 30. Nxh4 {[%clk 0:00:13.4]} 30... Qg4 {[%clk
0:00:12.6]} 31. Qf1 {[%clk 0:00:10.4]} 31... Ng5 {[%clk 0:00:13]} 32. b4 {[%clk
0:00:08.7]} 32... axb4 {[%clk 0:00:12.8]} 33. axb4 {[%clk 0:00:08.5]} 33... Nh3+
{[%clk 0:00:08.9]} 34. Kh1 {[%clk 0:00:08.4]} 34... f2 {[%clk 0:00:07.8]} 35.
Kg2 {[%clk 0:00:07.3]} 35... Kg7 {[%clk 0:00:05.7]} 36. Nf3 {[%clk 0:00:07.5]}
36... Kh6 {[%clk 0:00:03.9]} 37. b5 {[%clk 0:00:06.8]} 1-0

[Event "*** Titled Tuesday Blitz"]
[Site "Chess.com"]
[Date "2020.11.10"]
[Round "7"]
[White "VladimirPotkin"]
[Black "kuban1991"]
[Result "0-1"]
[WhiteElo "2693"]
[BlackElo "2889"]
[TimeControl "180+1"]
[EndTime "11:22:26 PST"]
[Termination "kuban1991 won on time"]

1. Nf3 {[%clk 0:03:00.9]} 1... g6 {[%clk 0:02:59.8]} 2. e4 {[%clk 0:03:00.5]}
2... Bg7 {[%clk 0:03:00.7]} 3. d4 {[%clk 0:03:00.6]} 3... c6 {[%clk 0:03:01]} 4.
Nc3 {[%clk 0:02:59.7]} 4... d5 {[%clk 0:03:01.6]} 5. h3 {[%clk 0:02:59.8]} 5...
Nf6 {[%clk 0:03:01.3]} 6. e5 {[%clk 0:02:59.9]} 6... Ne4 {[%clk 0:03:01.2]} 7.
Nxe4 {[%clk 0:03:00.2]} 7... dxe4 {[%clk 0:03:02.1]} 8. Ng5 {[%clk 0:03:00.8]}
8... c5 {[%clk 0:03:02.6]} 9. e6 {[%clk 0:02:46.9]} 9... f6 {[%clk 0:03:01.7]}
10. Nf7 {[%clk 0:02:23.2]} 10... Qxd4 {[%clk 0:03:01.5]} 11. Nxh8 {[%clk
0:02:13.8]} 11... Bxe6 {[%clk 0:03:00.3]} 12. Nxg6 {[%clk 0:02:07.5]} 12... hxg6
{[%clk 0:03:01.2]} 13. c3 {[%clk 0:02:04.5]} 13... Qxd1+ {[%clk 0:02:20.2]} 14.
Kxd1 {[%clk 0:02:05.4]} 14... Nc6 {[%clk 0:02:20.9]} 15. Be3 {[%clk 0:02:03.7]}
15... b6 {[%clk 0:02:17.4]} 16. Bb5 {[%clk 0:01:44.9]} 16... O-O-O+ {[%clk
0:02:15.3]} 17. Ke2 {[%clk 0:01:42.8]} 17... Ne5 {[%clk 0:02:16.2]} 18. Rhd1
{[%clk 0:01:18.9]} 18... Nd3 {[%clk 0:02:08.5]} 19. f3 {[%clk 0:00:47.8]} 19...
f5 {[%clk 0:02:04.3]} 20. fxe4 {[%clk 0:00:47.8]} 20... fxe4 {[%clk 0:02:05.2]}
21. Rd2 {[%clk 0:00:46.9]} 21... Kb7 {[%clk 0:02:00.1]} 22. Rf1 {[%clk
0:00:30.4]} 22... a6 {[%clk 0:01:47.5]} 23. Bxd3 {[%clk 0:00:13.4]} 23... exd3+
{[%clk 0:01:46.6]} 24. Ke1 {[%clk 0:00:12.9]} 24... Bxa2 {[%clk 0:01:42.7]} 25.
Rf4 {[%clk 0:00:09.9]} 25... Kc6 {[%clk 0:01:32.9]} 26. Rdf2 {[%clk 0:00:09.5]}
26... b5 {[%clk 0:01:27]} 27. Rg4 {[%clk 0:00:09.8]} 27... Rd6 {[%clk
0:01:24.7]} 28. Kd2 {[%clk 0:00:10.1]} 28... a5 {[%clk 0:01:13.2]} 29. Bf4
{[%clk 0:00:05.8]} 29... e5 {[%clk 0:01:13]} 30. Be3 {[%clk 0:00:05.9]} 30... b4
{[%clk 0:01:10.1]} 31. h4 {[%clk 0:00:05.8]} 31... a4 {[%clk 0:00:41.8]} 32.
cxb4 {[%clk 0:00:05.3]} 32... cxb4 {[%clk 0:00:37.2]} 33. Rxb4 {[%clk
0:00:06.2]} 33... Bb3 {[%clk 0:00:29.4]} 34. Rb6+ {[%clk 0:00:05.2]} 34... Kd7
{[%clk 0:00:29.9]} 35. Rxd6+ {[%clk 0:00:06.1]} 35... Kxd6 {[%clk 0:00:30.7]}
36. Kxd3 {[%clk 0:00:06.5]} 36... Ke6 {[%clk 0:00:26.9]} 37. Bg5 {[%clk
0:00:05.5]} 37... Kd5 {[%clk 0:00:24.6]} 38. Rf7 {[%clk 0:00:04.6]} 38... e4+
{[%clk 0:00:23.6]} 39. Kd2 {[%clk 0:00:04.3]} 39... Bxb2 {[%clk 0:00:23.9]} 40.
Bf6 {[%clk 0:00:02.6]} 40... a3 {[%clk 0:00:20.9]} 0-1

[Event "*** Titled Tuesday Blitz"]
[Site "Chess.com"]
[Date "2020.11.10"]
[Round "7"]
[White "Sofiia_Hryzlova"]
[Black "Alomaterapia"]
[Result "1-0"]
[WhiteElo "2303"]
[BlackElo "2443"]
[TimeControl "180+1"]
[EndTime "11:22:27 PST"]
[Termination "Sofiia_Hryzlova won on time"]

1. c4 {[%clk 0:02:58.9]} 1... e5 {[%clk 0:02:57.6]} 2. Nc3 {[%clk 0:02:57.1]}
2... Nc6 {[%clk 0:02:54.6]} 3. Nf3 {[%clk 0:02:56.4]} 3... Nf6 {[%clk
0:02:54.2]} 4. e4 {[%clk 0:02:55.9]} 4... Bb4 {[%clk 0:02:51.8]} 5. d3 {[%clk
0:02:55.2]} 5... d6 {[%clk 0:02:49.8]} 6. a3 {[%clk 0:02:53.3]} 6... Ba5 {[%clk
0:02:49.2]} 7. b4 {[%clk 0:02:51]} 7... Bb6 {[%clk 0:02:49.1]} 8. Na4 {[%clk
0:02:51]} 8... O-O {[%clk 0:02:36.6]} 9. g3 {[%clk 0:02:42.5]} 9... Bg4 {[%clk
0:02:26.1]} 10. Bg2 {[%clk 0:02:40.5]} 10... Bd4 {[%clk 0:02:16.8]} 11. Rb1
{[%clk 0:02:35.3]} 11... a6 {[%clk 0:02:17]} 12. h3 {[%clk 0:02:24.3]} 12...
Bxf3 {[%clk 0:02:02.6]} 13. Qxf3 {[%clk 0:02:22.7]} 13... b5 {[%clk 0:02:03.1]}
14. Nb2 {[%clk 0:02:18.7]} 14... Nd7 {[%clk 0:01:56.8]} 15. O-O {[%clk
0:02:16.5]} 15... Qf6 {[%clk 0:01:56.3]} 16. Qe2 {[%clk 0:02:13.3]} 16... Qg6
{[%clk 0:01:53.6]} 17. Be3 {[%clk 0:02:09.8]} 17... Bxe3 {[%clk 0:01:47.2]} 18.
Qxe3 {[%clk 0:02:09.6]} 18... Nd4 {[%clk 0:01:47.4]} 19. Nd1 {[%clk 0:02:05.4]}
19... a5 {[%clk 0:01:37.4]} 20. Nc3 {[%clk 0:02:00.4]} 20... axb4 {[%clk
0:01:29.2]} 21. axb4 {[%clk 0:01:57.7]} 21... bxc4 {[%clk 0:01:28.2]} 22. dxc4
{[%clk 0:01:54.6]} 22... Nb6 {[%clk 0:00:55.2]} 23. c5 {[%clk 0:01:39.1]} 23...
Nc8 {[%clk 0:00:43.5]} 24. Qd2 {[%clk 0:01:02.9]} 24... dxc5 {[%clk 0:00:38.1]}
25. bxc5 {[%clk 0:01:02.1]} 25... Ne7 {[%clk 0:00:37.3]} 26. Nd5 {[%clk
0:00:56.3]} 26... Nxd5 {[%clk 0:00:34.2]} 27. exd5 {[%clk 0:00:56.5]} 27... Rad8
{[%clk 0:00:31.7]} 28. Qe3 {[%clk 0:00:54.8]} 28... f6 {[%clk 0:00:28.8]} 29.
Rb7 {[%clk 0:00:54.2]} 29... Rd7 {[%clk 0:00:28]} 30. c6 {[%clk 0:00:51.9]}
30... Rdf7 {[%clk 0:00:22.8]} 31. d6 {[%clk 0:00:48.1]} 31... Nf5 {[%clk
0:00:22.9]} 32. Qa7 {[%clk 0:00:44.3]} 32... Nxd6 {[%clk 0:00:22.3]} 33. Rxc7
{[%clk 0:00:41.4]} 33... Nb5 {[%clk 0:00:20.4]} 34. Rxf7 {[%clk 0:00:39.8]}
34... Nxa7 {[%clk 0:00:20.4]} 35. Rxa7 {[%clk 0:00:40.2]} 35... Qd3 {[%clk
0:00:20]} 36. c7 {[%clk 0:00:38.6]} 36... Qc3 {[%clk 0:00:19]} 37. Rfa1 {[%clk
0:00:35.6]} 37... h5 {[%clk 0:00:18.3]} 38. Bd5+ {[%clk 0:00:34.6]} 38... Kh7
{[%clk 0:00:18.3]} 39. Be6 {[%clk 0:00:34.1]} 39... e4 {[%clk 0:00:17.2]} 40.
Bf5+ {[%clk 0:00:32.4]} 40... Kh6 {[%clk 0:00:16.9]} 41. h4 {[%clk 0:00:29.4]}
41... Qc4 {[%clk 0:00:14.7]} 42. Ra8 {[%clk 0:00:24.6]} 42... Rxa8 {[%clk
0:00:05.6]} 43. Rxa8 {[%clk 0:00:25.5]} 43... Qc1+ {[%clk 0:00:02.3]} 44. Kh2
{[%clk 0:00:24.6]} 44... g6 {[%clk 0:00:02.8]} 45. c8=Q {[%clk 0:00:23.9]} 1-0